[Event "Championnat d'Europe de Blitz"]
[Date "2024.12.09"]
[White "Muradli, Mahammad"]
[Black "Mamedov, Rauf"]
[WhiteElo "2588"]
[BlackElo "2656"]
[Round "12.4"]
[Result "0-1"]
[TimeControl "180+2"]

1. d4 {[%clk 00:03:01]} d5 {[%emt 00:00:03] [%clk 00:03:03]} 2. c4 {[%clk
00:03:02]} dxc4 {[%clk 00:03:05]} 3. Nf3 {[%clk 00:03:02]} Nf6 {[%clk 00:03:06]}
4. e3 {[%emt 00:00:01] [%clk 00:03:04]} e6 {[%clk 00:03:07]} 5. Bxc4 {[%emt
00:00:01] [%clk 00:03:05]} c5 {[%clk 00:03:08]} 6. O-O {[%emt 00:00:01] [%clk
00:03:05]} a6 {[%clk 00:03:10]} 7. b3 {[%emt 00:00:05] [%clk 00:03:02]} cxd4
{[%emt 00:00:02] [%clk 00:03:09]} 8. Nxd4 {[%emt 00:00:01] [%clk 00:03:03]} Be7
{[%emt 00:00:03] [%clk 00:03:08]} 9. Bb2 {[%emt 00:00:02] [%clk 00:03:04]} b5
{[%emt 00:00:01] [%clk 00:03:09]} 10. Be2 {[%clk 00:03:05]} Bb7 {[%emt 00:00:01]
[%clk 00:03:10]} 11. Nd2 {[%emt 00:00:03] [%clk 00:03:03]} O-O {[%emt 00:00:04]
[%clk 00:03:08]} 12. a4 {[%emt 00:00:02] [%clk 00:03:04]} bxa4 {[%emt 00:00:13]
[%clk 00:02:57]} 13. Rxa4 {[%emt 00:00:01] [%clk 00:03:05]} Nbd7 {[%emt
00:00:05] [%clk 00:02:53]} 14. Bf3 {[%emt 00:00:18] [%clk 00:02:49]} Nd5 {[%emt
00:00:21] [%clk 00:02:34]} 15. Qb1 {[%emt 00:00:32] [%clk 00:02:20]} Rc8 {[%emt
00:00:40] [%clk 00:01:56]} 16. Bxd5 {[%emt 00:00:24] [%clk 00:01:58]} Bxd5
{[%emt 00:00:04] [%clk 00:01:54]} 17. Rxa6 {[%emt 00:00:01] [%clk 00:01:59]} Bb4
{[%emt 00:00:06] [%clk 00:01:49]} 18. Rd1 {[%emt 00:00:27] [%clk 00:01:34]} Nc5
{[%emt 00:00:09] [%clk 00:01:42]} 19. Ra1 {[%emt 00:00:18] [%clk 00:01:18]} Qg5
{[%emt 00:00:03] [%clk 00:01:41]} 20. N2f3 {[%emt 00:00:07] [%clk 00:01:13]} Qh5
{[%emt 00:00:04] [%clk 00:01:40]} 21. Ba3 {[%emt 00:00:04] [%clk 00:01:11]} Be4
{[%emt 00:00:23] [%clk 00:01:18]} 22. Qb2 {[%emt 00:00:15] [%clk 00:00:58]} Nd3
{[%emt 00:00:02] [%clk 00:01:19]} 23. Qe2 {[%clk 00:00:59]} Bxa3 {[%emt
00:00:01] [%clk 00:01:20]} 24. Rxa3 {[%emt 00:00:01] [%clk 00:01:00]} e5 {[%emt
00:00:01] [%clk 00:01:22]} 25. Ra5 {[%emt 00:00:09] [%clk 00:00:53]} Qg6 {[%emt
00:00:12] [%clk 00:01:12]} 26. Nh4 {[%emt 00:00:39] [%clk 00:00:16]} Qb6 {[%emt
00:00:03] [%clk 00:01:10]} 27. Ra4 {[%emt 00:00:12] [%clk 00:00:07]} exd4 {[%emt
00:00:01] [%clk 00:01:10]} 28. Rxd4 {[%clk 00:00:08]} Qxb3 {[%emt 00:00:30]
[%clk 00:00:43]} 29. Rxe4 {[%emt 00:00:06] [%clk 00:00:04]} Rc2 {[%emt 00:00:01]
[%clk 00:00:44]} 30. Qf3 {[%emt 00:00:02] [%clk 00:00:04]} Nxf2 {[%emt 00:00:04]
[%clk 00:00:43]} 31. Rf1 {[%emt 00:00:02] [%clk 00:00:03]} Nxe4 {[%emt 00:00:02]
[%clk 00:00:42]} 32. Qxe4 {[%clk 00:00:04]} Qc4 {[%emt 00:00:09] [%clk
00:00:35]} 33. Qxc4 {[%emt 00:00:02] [%clk 00:00:04]} Rxc4 {[%clk 00:00:37]} 34.
Nf5 {[%emt 00:00:01] [%clk 00:00:05]} g6 {[%emt 00:00:08] [%clk 00:00:31]} 35.
Nd6 {[%emt 00:00:03] [%clk 00:00:04]} Rc6 {[%emt 00:00:01] [%clk 00:00:30]} 36.
Ne4 {[%emt 00:00:04] [%clk 00:00:04]} f5 {[%emt 00:00:02] [%clk 00:00:30]} 37.
Ng3 {[%emt 00:00:01] [%clk 00:00:04]} Re8 {[%clk 00:00:31]} 38. Kf2 {[%emt
00:00:02] [%clk 00:00:04]} Rc2+ {[%emt 00:00:05] [%clk 00:00:28]} 39. Kf3 {[%emt
00:00:02] [%clk 00:00:05]} Rd8 {[%emt 00:00:02] [%clk 00:00:28]} 40. Rf2 {[%emt
00:00:03] [%clk 00:00:03]} Rxf2+ {[%emt 00:00:02] [%clk 00:00:29]} 41. Kxf2
{[%clk 00:00:05]} Kg7 {[%clk 00:00:30]} 42. Kf3 {[%emt 00:00:02] [%clk
00:00:05]} Kf6 {[%emt 00:00:02] [%clk 00:00:30]} 43. h3 {[%clk 00:00:06]} Rd3
{[%emt 00:00:01] [%clk 00:00:30]} 44. Ne2 {[%emt 00:00:02] [%clk 00:00:07]} Ra3
{[%clk 00:00:32]} 45. Nf4 {[%emt 00:00:03] [%clk 00:00:06]} g5 {[%emt 00:00:02]
[%clk 00:00:31]} 46. Nh5+ {[%emt 00:00:05] [%clk 00:00:04]} Ke5 {[%emt 00:00:01]
[%clk 00:00:32]} 0-1

[Site "Europe Echecs"]

[Event "Championnat d'Europe de Blitz"]
[Date "2024.12.09"]
[White "Dardha, Daniel"]
[Black "Santos Latasa, Jaime"]
[WhiteElo "2639"]
[BlackElo "2628"]
[Round "12.5"]
[Result "0-1"]
[TimeControl "180+2"]

1. d4 {[%emt 00:00:03] [%clk 00:03:02]} d5 {[%emt 00:00:02] [%clk 00:03:01]} 2.
c4 {[%emt 00:00:05] [%clk 00:03:00]} e6 {[%emt 00:00:01] [%clk 00:03:02]} 3. Nc3
{[%emt 00:00:03] [%clk 00:02:58]} Nf6 {[%emt 00:00:01] [%clk 00:03:03]} 4. cxd5
{[%emt 00:00:01] [%clk 00:02:59]} exd5 {[%clk 00:03:04]} 5. Bg5 {[%emt 00:00:02]
[%clk 00:02:59]} Be7 {[%emt 00:00:01] [%clk 00:03:06]} 6. e3 {[%emt 00:00:01]
[%clk 00:02:59]} h6 {[%emt 00:00:02] [%clk 00:03:06]} 7. Bh4 {[%emt 00:00:01]
[%clk 00:03:00]} O-O {[%emt 00:00:03] [%clk 00:03:06]} 8. Bd3 {[%emt 00:00:04]
[%clk 00:02:57]} c6 {[%emt 00:00:04] [%clk 00:03:04]} 9. Bg3 {[%emt 00:00:04]
[%clk 00:02:55]} Re8 {[%emt 00:00:10] [%clk 00:02:56]} 10. Nf3 {[%emt 00:00:04]
[%clk 00:02:53]} Nbd7 {[%emt 00:00:10] [%clk 00:02:49]} 11. h3 {[%emt 00:00:04]
[%clk 00:02:50]} Bb4 {[%emt 00:00:26] [%clk 00:02:25]} 12. O-O {[%emt 00:00:09]
[%clk 00:02:43]} Ne4 {[%emt 00:00:05] [%clk 00:02:22]} 13. Bxe4 {[%emt 00:00:08]
[%clk 00:02:38]} dxe4 {[%emt 00:00:04] [%clk 00:02:20]} 14. Nd2 {[%emt 00:00:09]
[%clk 00:02:30]} Nf6 {[%emt 00:00:14] [%clk 00:02:08]} 15. Qb3 {[%emt 00:00:18]
[%clk 00:02:14]} Bf8 {[%emt 00:00:36] [%clk 00:01:35]} 16. Bh4 {[%emt 00:00:17]
[%clk 00:01:58]} g5 {[%emt 00:00:10] [%clk 00:01:27]} 17. Bg3 {[%clk 00:01:59]}
b6 {[%emt 00:00:35] [%clk 00:00:55]} 18. Be5 {[%emt 00:00:32] [%clk 00:01:28]}
Nd7 {[%emt 00:00:02] [%clk 00:00:55]} 19. Bh2 {[%emt 00:00:23] [%clk 00:01:06]}
Nf6 {[%emt 00:00:02] [%clk 00:00:57]} 20. Rae1 {[%emt 00:00:08] [%clk 00:00:59]}
Ba6 {[%emt 00:00:06] [%clk 00:00:53]} 21. Nc4 {[%emt 00:00:14] [%clk 00:00:47]}
Qe7 {[%emt 00:00:34]} 22. Rc1 {[%clk 00:00:29]} Qe6 {[%emt 00:00:06] [%clk
00:00:38]} 23. Ne2 {[%emt 00:00:08] [%clk 00:00:22]} Nd5 {[%emt 00:00:07] [%clk
00:00:33]} 24. Rfe1 {[%emt 00:00:07] [%clk 00:00:17]} Nb4 {[%emt 00:00:08] [%clk
00:00:28]} 25. Ne5 {[%emt 00:00:08] [%clk 00:00:11]} Qxb3 {[%emt 00:00:05] [%clk
00:00:25]} 26. axb3 {[%emt 00:00:01] [%clk 00:00:12]} Nd3 {[%emt 00:00:01] [%clk
00:00:25]} 27. Ra1 {[%emt 00:00:07] [%clk 00:00:07]} Nxe1 {[%emt 00:00:16] [%clk
00:00:11]} 28. Rxa6 {[%emt 00:00:01] [%clk 00:00:08]} Nd3 {[%emt 00:00:01] [%clk
00:00:12]} 29. Nc3 {[%emt 00:00:07] [%clk 00:00:04]} c5 {[%emt 00:00:08] [%clk
00:00:06]} 30. Nxe4 {[%emt 00:00:02] [%clk 00:00:03]} Bg7 {[%emt 00:00:04] [%clk
00:00:04]} 31. Nxd3 {[%emt 00:00:02] [%clk 00:00:03]} Rxe4 {[%clk 00:00:05]} 32.
dxc5 {[%emt 00:00:03] [%clk 00:00:03]} Rd8 {[%emt 00:00:01] [%clk 00:00:06]} 33.
Ne1 {[%clk 00:00:04]} bxc5 {[%emt 00:00:01] [%clk 00:00:06]} 34. Kf1 {[%emt
00:00:03] [%clk 00:00:04]} Rb4 {[%clk 00:00:07]} 35. Rxa7 {[%emt 00:00:01] [%clk
00:00:04]} Rxb3 {[%emt 00:00:01] [%clk 00:00:08]} 36. Rc7 {[%emt 00:00:02] [%clk
00:00:04]} Rxb2 {[%emt 00:00:03] [%clk 00:00:07]} 37. Rxc5 {[%emt 00:00:03]
[%clk 00:00:03]} Rdd2 {[%emt 00:00:01] [%clk 00:00:08]} 38. Bg3 {[%emt 00:00:01]
[%clk 00:00:04]} Rb1 {[%emt 00:00:02] [%clk 00:00:08]} 39. f3 {[%emt 00:00:02]
[%clk 00:00:04]} Ra2 {[%emt 00:00:03] [%clk 00:00:07]} 40. Rc4 {[%emt 00:00:02]
[%clk 00:00:04]} Bf8 {[%emt 00:00:02] [%clk 00:00:07]} 41. e4 {[%emt 00:00:02]
[%clk 00:00:03]} Bb4 {[%emt 00:00:02] [%clk 00:00:07]} 42. e5 {[%emt 00:00:02]
[%clk 00:00:04]} Raa1 {[%emt 00:00:02] [%clk 00:00:06]} 43. Re4 {[%emt 00:00:02]
[%clk 00:00:04]} Kf8 {[%emt 00:00:02] [%clk 00:00:06]} 44. h4 {[%emt 00:00:02]
[%clk 00:00:04]} Ke7 {[%emt 00:00:01] [%clk 00:00:07]} 45. hxg5 {[%clk
00:00:05]} hxg5 {[%clk 00:00:08]} 46. Re2 {[%emt 00:00:03] [%clk 00:00:04]} Ke6
{[%emt 00:00:02] [%clk 00:00:09]} 47. Re4 {[%clk 00:00:06]} Bc3 {[%emt 00:00:03]
[%clk 00:00:08]} 48. Bf2 {[%emt 00:00:02] [%clk 00:00:06]} Rb4 {[%emt 00:00:04]
[%clk 00:00:06]} 49. Re2 {[%emt 00:00:04] [%clk 00:00:03]} Rb2 {[%emt 00:00:03]
[%clk 00:00:05]} 50. Re4 {[%emt 00:00:02] [%clk 00:00:03]} Rb4 {[%emt 00:00:03]
[%clk 00:00:05]} 51. Re2 {[%emt 00:00:01] [%clk 00:00:04]} Bxe5 {[%emt 00:00:02]
[%clk 00:00:05]} 52. g4 {[%emt 00:00:01] [%clk 00:00:05]} f6 {[%emt 00:00:03]
[%clk 00:00:04]} 53. Kg2 {[%clk 00:00:06]} Kf7 {[%clk 00:00:05]} 54. Nd3 {[%emt
00:00:01] [%clk 00:00:07]} Rb5 {[%clk 00:00:06]} 55. Nxe5+ {[%emt 00:00:02]
[%clk 00:00:07]} Rxe5 {[%emt 00:00:01] [%clk 00:00:07]} 56. Rc2 {[%clk
00:00:08]} Rea5 {[%emt 00:00:02] [%clk 00:00:07]} 57. Rc7+ {[%emt 00:00:02]
[%clk 00:00:07]} Kg6 {[%clk 00:00:08]} 58. Bd4 {[%emt 00:00:02] [%clk 00:00:08]}
Rd1 {[%emt 00:00:02] [%clk 00:00:08]} 59. Rc4 {[%emt 00:00:05] [%clk 00:00:05]}
Ra2+ {[%emt 00:00:03] [%clk 00:00:07]} 60. Kg3 {[%clk 00:00:06]} Rdd2 {[%emt
00:00:04] [%clk 00:00:05]} 0-1

[Site "Europe Echecs"]

[Event "Championnat d'Europe de Blitz"]
[Date "2024.12.09"]
[White "Kazakouski, Valery"]
[Black "Peyrer, Konstantin"]
[WhiteElo "2567"]
[BlackElo "2440"]
[Round "12.6"]
[Result "1/2-1/2"]
[TimeControl "180+2"]

1. Nf3 {[%emt 00:16:00] [%clk 00:03:03]} Nf6 {[%clk 00:03:03]} 2. c4 {[%clk
00:03:04]} e6 {[%clk 00:03:04]} 3. g3 {[%clk 00:03:06]} d5 {[%emt 00:00:01]
[%clk 00:03:05]} 4. b3 {[%clk 00:03:07]} c5 {[%emt 00:00:02] [%clk 00:03:05]} 5.
Bg2 {[%emt 00:00:02] [%clk 00:03:08]} Nc6 {[%emt 00:00:02] [%clk 00:03:04]} 6.
e3 {[%emt 00:00:03] [%clk 00:03:07]} Be7 {[%emt 00:00:04] [%clk 00:03:02]} 7.
O-O {[%emt 00:00:01] [%clk 00:03:08]} O-O {[%emt 00:00:02] [%clk 00:03:02]} 8.
Bb2 {[%emt 00:00:02] [%clk 00:03:09]} d4 {[%emt 00:00:05] [%clk 00:02:59]} 9.
exd4 {[%emt 00:00:01] [%clk 00:03:10]} cxd4 {[%emt 00:00:01] [%clk 00:03:00]}
10. Re1 {[%clk 00:03:11]} a5 {[%emt 00:00:07] [%clk 00:02:55]} 11. Na3 {[%emt
00:00:02] [%clk 00:03:11]} a4 {[%emt 00:00:07] [%clk 00:02:50]} 12. Nb5 {[%emt
00:00:01] [%clk 00:03:12]} Bc5 {[%emt 00:00:03] [%clk 00:02:49]} 13. b4 {[%emt
00:00:25] [%clk 00:02:49]} Nxb4 {[%emt 00:00:06] [%clk 00:02:44]} 14. Bxd4
{[%emt 00:00:05] [%clk 00:02:47]} Bxd4 {[%emt 00:00:09] [%clk 00:02:36]} 15.
Nbxd4 {[%emt 00:00:16] [%clk 00:02:33]} Nd3 {[%emt 00:00:13] [%clk 00:02:25]}
16. Re3 {[%emt 00:00:10] [%clk 00:02:25]} Nc5 {[%emt 00:00:02] [%clk 00:02:25]}
17. Rb1 {[%emt 00:00:17] [%clk 00:02:10]} Ra6 {[%emt 00:00:15] [%clk 00:02:13]}
18. Nc2 {[%emt 00:00:12] [%clk 00:01:59]} Ng4 {[%clk 00:02:14]} 19. Re2 {[%emt
00:00:01] [%clk 00:02:00]} Nd3 {[%emt 00:00:01] [%clk 00:02:15]} 20. Nb4 {[%emt
00:00:04] [%clk 00:01:59]} Rd6 {[%emt 00:00:03] [%clk 00:02:13]} 21. Nxd3 {[%emt
00:00:04] [%clk 00:01:58]} Rxd3 {[%emt 00:00:01] [%clk 00:02:14]} 22. Qxa4
{[%clk 00:01:59]} Bd7 {[%emt 00:00:05] [%clk 00:02:11]} 23. Qc2 {[%emt 00:00:09]
[%clk 00:01:52]} Bc6 {[%emt 00:00:06] [%clk 00:02:06]} 24. Ne1 {[%emt 00:00:06]
[%clk 00:01:48]} Rd4 {[%clk 00:02:07]} 25. Bxc6 {[%emt 00:00:15] [%clk
00:01:35]} bxc6 {[%emt 00:00:01] [%clk 00:02:09]} 26. h3 {[%emt 00:00:01] [%clk
00:01:36]} Nf6 {[%clk 00:02:10]} 27. Nf3 {[%clk 00:01:37]} Rd6 {[%emt 00:00:02]
[%clk 00:02:10]} 28. d4 {[%emt 00:00:03] [%clk 00:01:36]} Qa5 {[%emt 00:00:10]
[%clk 00:02:02]} 29. Kg2 {[%emt 00:00:06] [%clk 00:01:32]} h6 {[%emt 00:00:10]
[%clk 00:01:54]} 30. Qd2 {[%emt 00:00:05] [%clk 00:01:28]} Qa4 {[%emt 00:00:04]
[%clk 00:01:53]} 31. Qb4 {[%emt 00:00:02] [%clk 00:01:29]} Qxb4 {[%emt 00:00:07]
[%clk 00:01:47]} 32. Rxb4 {[%emt 00:00:02]} Ra8 {[%clk 00:01:48]} 33. a4 {[%emt
00:00:12] [%clk 00:01:20]} c5 {[%emt 00:00:03] [%clk 00:01:48]} 34. dxc5 {[%clk
00:01:21]} Rc6 {[%emt 00:00:01] [%clk 00:01:49]} 35. Ne5 {[%emt 00:00:13] [%clk
00:01:11]} Rxc5 {[%emt 00:00:02] [%clk 00:01:48]} 36. Rb7 {[%emt 00:00:02] [%clk
00:01:11]} Rxa4 {[%emt 00:00:09] [%clk 00:01:42]} 37. Rb8+ {[%emt 00:00:05]
[%clk 00:01:08]} Kh7 {[%emt 00:00:01] [%clk 00:01:42]} 38. Nxf7 {[%emt 00:00:01]
[%clk 00:01:09]} Kg6 {[%emt 00:00:10] [%clk 00:01:35]} 39. Ne5+ {[%emt 00:00:03]
[%clk 00:01:07]} Kh7 {[%emt 00:00:02] [%clk 00:01:35]} 40. Rb7 {[%emt 00:00:09]
[%clk 00:01:01]} Raa5 {[%emt 00:00:08] [%clk 00:01:29]} 41. Nd3 {[%emt 00:00:18]
[%clk 00:00:44]} Rxc4 {[%emt 00:00:05] [%clk 00:01:27]} 42. Rxe6 {[%clk
00:00:45]} Nd5 {[%emt 00:00:05] [%clk 00:01:23]} 43. Ne5 {[%emt 00:00:16] [%clk
00:00:31]} Rc2 {[%emt 00:00:19] [%clk 00:01:06]} 44. Rg6 {[%emt 00:00:07] [%clk
00:00:26]} Rc7 {[%emt 00:00:09] [%clk 00:00:58]} 45. Rxc7 {[%emt 00:00:17] [%clk
00:00:12]} Nxc7 {[%emt 00:00:01] [%clk 00:00:59]} 46. Rc6 {[%clk 00:00:14]} Rxe5
{[%emt 00:00:01] [%clk 00:01:00]} 47. Rxc7 {[%clk 00:00:15]} Re4 {[%emt
00:00:02] [%clk 00:00:59]} 48. Kf3 {[%emt 00:00:01] [%clk 00:00:16]} Ra4 {[%clk
00:01:01]} 49. Re7 {[%emt 00:00:02] [%clk 00:00:16]} Kg6 {[%emt 00:00:02] [%clk
00:01:00]} 50. Re6+ {[%clk 00:00:18]} Kf7 {[%clk 00:01:01]} 51. Re4 {[%clk
00:00:19]} Ra2 {[%emt 00:00:01] [%clk 00:01:03]} 52. g4 {[%emt 00:00:01] [%clk
00:00:19]} g6 {[%emt 00:00:02] [%clk 00:01:03]} 53. Kg3 {[%emt 00:00:03] [%clk
00:00:19]} Ra3+ {[%emt 00:00:02] [%clk 00:01:03]} 54. Re3 {[%clk 00:00:21]} Ra2
{[%emt 00:00:02] [%clk 00:01:03]} 55. f4 {[%emt 00:00:01] [%clk 00:00:21]} Ra4
{[%emt 00:00:03] [%clk 00:01:02]} 56. h4 {[%emt 00:00:02] [%clk 00:00:22]} Kf6
{[%emt 00:00:03] [%clk 00:01:00]} 57. Kf3 {[%clk 00:00:23]} Rb4 {[%emt 00:00:01]
[%clk 00:01:01]} 58. Rd3 {[%emt 00:00:03] [%clk 00:00:23]} Rb6 {[%emt 00:00:03]
[%clk 00:01:00]} 59. Rd5 {[%emt 00:00:05] [%clk 00:00:19]} Rb3+ {[%emt 00:00:02]
[%clk 00:01:00]} 60. Ke4 {[%emt 00:00:01] [%clk 00:00:21]} Ke6 {[%emt 00:00:02]
[%clk 00:01:00]} 61. Rd4 {[%emt 00:00:09] [%clk 00:00:14]} Rh3 {[%emt 00:00:02]
[%clk 00:00:59]} 62. f5+ {[%emt 00:00:04] [%clk 00:00:12]} gxf5+ {[%emt
00:00:05] [%clk 00:00:56]} 63. gxf5+ {[%clk 00:00:14]} Ke7 {[%emt 00:00:02]
[%clk 00:00:56]} 64. Ke5 {[%emt 00:00:02] [%clk 00:00:13]} Re3+ {[%emt 00:00:02]
[%clk 00:00:56]} 65. Kf4 {[%emt 00:00:02] [%clk 00:00:13]} Ra3 {[%emt 00:00:03]
[%clk 00:00:55]} 66. Re4+ {[%emt 00:00:01] [%clk 00:00:14]} Kf7 {[%emt 00:00:01]
[%clk 00:00:56]} 67. Kg4 {[%emt 00:00:01] [%clk 00:00:15]} Ra5 {[%emt 00:00:06]
[%clk 00:00:52]} 68. Rc4 {[%clk 00:00:16]} Ra6 {[%emt 00:00:15] [%clk 00:00:40]}
69. Rb4 {[%emt 00:00:07] [%clk 00:00:11]} Kf6 {[%emt 00:00:03] [%clk 00:00:38]}
70. Kf4 {[%emt 00:00:02] [%clk 00:00:11]} Rc6 {[%emt 00:00:03] [%clk 00:00:38]}
71. Re4 {[%emt 00:00:02] [%clk 00:00:10]} Ra6 {[%emt 00:00:03] [%clk 00:00:37]}
72. Kg4 {[%emt 00:00:03] [%clk 00:00:09]} Rb6 {[%emt 00:00:03] [%clk 00:00:36]}
73. Kf4 {[%emt 00:00:04] [%clk 00:00:06]} 1/2-1/2

[Site "Europe Echecs"]

[Event "Championnat d'Europe de Blitz"]
[Date "2024.12.09"]
[White "Korobov, Anton"]
[Black "Bernadskiy, Vitaliy"]
[WhiteElo "2629"]
[BlackElo "2546"]
[Round "12.7"]
[Result "1/2-1/2"]
[TimeControl "180+2"]

1. d4 {[%clk 00:03:03]} d6 {[%emt 00:00:02] [%clk 00:03:03]} 2. c4 {[%emt
00:00:02] [%clk 00:03:02]} e5 {[%clk 00:03:04]} 3. Nf3 {[%emt 00:00:01] [%clk
00:03:03]} e4 {[%emt 00:00:13] [%clk 00:02:54]} 4. Ng5 {[%emt 00:00:01] [%clk
00:03:04]} f5 {[%emt 00:00:05] [%clk 00:02:51]} 5. Nc3 {[%emt 00:00:02] [%clk
00:03:04]} Be7 {[%emt 00:00:01] [%clk 00:02:51]} 6. h4 {[%emt 00:00:01] [%clk
00:03:05]} Nf6 {[%emt 00:00:02] [%clk 00:02:51]} 7. e3 {[%emt 00:00:02] [%clk
00:03:05]} O-O {[%emt 00:00:03] [%clk 00:02:50]} 8. b4 {[%emt 00:00:02] [%clk
00:03:05]} c6 {[%emt 00:00:01] [%clk 00:02:51]} 9. Qb3 {[%emt 00:00:09] [%clk
00:02:59]} a5 {[%emt 00:00:18] [%clk 00:02:35]} 10. b5 {[%emt 00:00:07] [%clk
00:02:54]} c5 {[%emt 00:00:02] [%clk 00:02:35]} 11. dxc5 {[%emt 00:00:07] [%clk
00:02:48]} dxc5 {[%emt 00:00:02] [%clk 00:02:36]} 12. Bb2 {[%emt 00:00:01] [%clk
00:02:48]} h6 {[%emt 00:00:36] [%clk 00:02:02]} 13. Rd1 {[%emt 00:00:03] [%clk
00:02:47]} a4 {[%emt 00:00:25] [%clk 00:01:40]} 14. Qc2 {[%emt 00:00:06] [%clk
00:02:42]} Qa5 {[%emt 00:00:01] [%clk 00:01:41]} 15. Be2 {[%emt 00:00:14] [%clk
00:02:30]} a3 {[%emt 00:00:02] [%clk 00:01:41]} 16. Ba1 {[%emt 00:00:01] [%clk
00:02:31]} hxg5 {[%emt 00:00:21] [%clk 00:01:22]} 17. hxg5 {[%emt 00:00:01]
[%clk 00:02:32]} Nh7 {[%emt 00:00:02] [%clk 00:01:23]} 18. g6 {[%emt 00:00:06]
[%clk 00:02:28]} Ng5 {[%emt 00:00:06] [%clk 00:01:19]} 19. Kf1 {[%emt 00:00:06]
[%clk 00:02:24]} Be6 {[%emt 00:00:09] [%clk 00:01:12]} 20. Nd5 {[%emt 00:00:06]
[%clk 00:02:20]} Bxd5 {[%emt 00:00:02] [%clk 00:01:12]} 21. Rxd5 {[%emt
00:00:01] [%clk 00:02:20]} Qb6 {[%emt 00:00:35] [%clk 00:00:39]} 22. g4 {[%emt
00:00:20] [%clk 00:02:02]} Qxg6 {[%emt 00:00:03] [%clk 00:00:39]} 23. gxf5
{[%emt 00:00:11] [%clk 00:01:53]} Rxf5 {[%emt 00:00:02] [%clk 00:00:38]} 24. Bh5
{[%emt 00:00:06] [%clk 00:01:50]} Qe6 {[%emt 00:00:16] [%clk 00:00:24]} 25. Qd1
{[%emt 00:00:55] [%clk 00:00:57]} Rxd5 {[%emt 00:00:09] [%clk 00:00:17]} 26.
cxd5 {[%emt 00:00:01] [%clk 00:00:58]} Qd6 {[%emt 00:00:10] [%clk 00:00:08]} 27.
Bg4 {[%emt 00:00:21] [%clk 00:00:39]} Nd7 {[%emt 00:00:03] [%clk 00:00:08]} 28.
Bxd7 {[%emt 00:00:08] [%clk 00:00:32]} Qxd7 {[%emt 00:00:03] [%clk 00:00:08]}
29. Qh5 {[%clk 00:00:33]} Qxd5 {[%emt 00:00:05] [%clk 00:00:06]} 30. Qh8+ {[%emt
00:00:07] [%clk 00:00:27]} Kf7 {[%emt 00:00:01] [%clk 00:00:07]} 31. Qxa8 {[%emt
00:00:09] [%clk 00:00:21]} Qd1+ {[%emt 00:00:01] [%clk 00:00:07]} 32. Kg2 {[%clk
00:00:22]} Qf3+ {[%emt 00:00:02] [%clk 00:00:08]} 33. Kg1 {[%emt 00:00:01] [%clk
00:00:22]} Nh3+ {[%emt 00:00:05] [%clk 00:00:05]} 34. Rxh3 {[%clk 00:00:23]}
Qxh3 {[%emt 00:00:01] [%clk 00:00:06]} 35. Qxb7 {[%emt 00:00:07] [%clk
00:00:18]} Qg4+ {[%clk 00:00:07]} 36. Kh2 {[%emt 00:00:01] [%clk 00:00:20]} Qh4+
{[%emt 00:00:05] [%clk 00:00:04]} 37. Kg2 {[%emt 00:00:01] [%clk 00:00:21]} Qg4+
{[%emt 00:00:01] [%clk 00:00:05]} 38. Kh2 {[%emt 00:00:01] [%clk 00:00:22]} Qf5
{[%emt 00:00:04] [%clk 00:00:03]} 39. Kg1 {[%emt 00:00:10] [%clk 00:00:14]} Qg4+
{[%emt 00:00:01] [%clk 00:00:04]} 40. Kh2 {[%clk 00:00:15]} 1/2-1/2

[Site "Europe Echecs"]